fUSD/lending_fUSD_20250427
["ID","MTS","AMOUNT","RATE_DAILY","PERIOD"]
[359168672,1745767832738,-480.0,0.00019953,2]
[359168673,1745767832747,-480.0,0.00019953,2]
[359168674,1745767832756,-480.0,0.00019953,2]
[359168675,1745767832767,-480.0,0.00019953,2]
[359168676,1745767832776,-480.0,0.00019953,2]
[359168677,1745767832786,-480.0,0.00019953,2]
[359168678,1745767832795,-6931.46,0.00019953,2]
[359168679,1745767832804,-480.0,0.00019953,2]
[359168680,1745767832813,-480.0,0.00019953,2]
[359168681,1745767832823,-480.0,0.00019953,2]
[359168682,1745767832832,-643.83,0.00019953,2]
[359168683,1745767832842,-480.0,0.00019953,2]
[359168684,1745767832851,-487.71,0.00019953,2]
[359168685,1745767832860,-480.0,0.00019953,2]
[359168686,1745767832870,-480.0,0.00019953,2]
[359168687,1745767832879,-153.73471613,0.00019953,2]
[359168688,1745767832888,-480.0,0.00019953,2]
[359168689,1745767832898,-160.8508664,0.00019953,2]
[359168690,1745767832907,-500.0,0.00019953,2]
[359168691,1745767832918,-500.0,0.00019953,2]
[359168692,1745767832927,-480.0,0.00019953,2]
[359168693,1745767832938,-480.0,0.00019953,2]
[359168694,1745767832950,-47681.5,0.00019953,2]
[359168695,1745767832959,-480.0,0.00019953,2]
[359168696,1745767832969,-320.0,0.00019953,2]
[359168697,1745767832979,-480.0,0.00019953,2]
[359168698,1745767832988,-480.0,0.00019953,2]
[359168699,1745767832997,-480.0,0.00019953,2]
[359168700,1745767833007,-480.0,0.00019953,2]
[359168701,1745767833016,-480.0,0.00019953,2]
[359168702,1745767833027,-6061.05,0.00019953,2]
[359168703,1745767833037,-480.0,0.00019953,2]
[359168704,1745767833047,-480.0,0.00019953,2]
[359168705,1745767833056,-224.02897389,0.00019953,2]
[359168706,1745767833070,-297.7402017,0.00019953,2]
[359168707,1745767833080,-430.97590366,0.00019953,2]
[359168708,1745767833096,-670.41993916,0.00019953,2]
[359168709,1745767833109,-1650.24415718,0.00019953,2]
[359168710,1745767833119,-500.0,0.00019953,2]
[359168711,1745767833129,-400.0,0.00019953,2]
[359168712,1745767833138,-480.0,0.00019953,2]
[359168713,1745767833147,-480.0,0.00019953,2]
[359168714,1745767833156,-458.3879613,0.00019953,2]
[359168715,1745767833167,-59.68759743,0.00019953,2]
[359168716,1745767833176,-375.8317024,0.00019953,2]
[359168717,1745767833187,-104.1682976,0.00019953,2]
[359168718,1745767833196,-211.044347,0.00019953,2]
[359168719,1745767833217,-268.955653,0.00019953,2]
[359168720,1745767833227,-1009.13,0.00019953,2]
[359168721,1745767833236,-480.0,0.00019953,2]
[359168722,1745767833246,-480.0,0.00019953,2]
[359168723,1745767833256,-282.16064972,0.00019953,2]
[359168724,1745767833265,-271.9992291,0.00019953,2]
[359168748,1745767837734,-796.0,0.00019952,2]
[359168749,1745767837743,-208.0007709,0.00019953,2]
[359168750,1745767837754,-480.0,0.00019953,2]
[359168751,1745767837763,-480.0,0.00019953,2]
[359168752,1745767837772,-520.21,0.00019953,2]
[359168753,1745767837782,-480.0,0.00019953,2]
[359168754,1745767837791,-1048.62,0.00019953,2]
[359168755,1745767837800,-98.18381737,0.00019953,2]
[359168774,1745767839964,-1098.45868,0.00019851,2]
[359168775,1745767839974,-1330.74,0.00019952,2]
[359168776,1745767839984,-381.81618263,0.00019953,2]
[359168777,1745767839994,-511.69517068,0.00019953,2]
[359168778,1745767840005,-480.0,0.00019953,2]
[359168779,1745767840014,-508.43078616,0.00019953,2]
[359168780,1745767840025,-247.01753971,0.00019953,2]
[359168781,1745767840035,-480.0,0.00019953,2]
[359168782,1745767840046,-480.0,0.00019953,2]
[359168783,1745767840057,-285.5234046,0.00019953,2]
[359168784,1745767840067,-279.546119,0.00019953,2]
[359168785,1745767840076,-279.546119,0.00019953,2]
[359168786,1745767840086,-279.546119,0.00019953,2]
[359168787,1745767840096,-960.16,0.00019953,2]
[359168788,1745767840105,-279.546119,0.00019953,2]
[359168789,1745767840115,-480.0,0.00019953,2]
[359168790,1745767840125,-279.546119,0.00019953,2]
[359168791,1745767840135,-151.0,0.00019953,2]
[359168792,1745767840146,-151.0,0.00019953,2]
[359168793,1745767840156,-151.0,0.00019953,2]
[359168794,1745767840165,-151.0,0.00019953,2]
[359168795,1745767840175,-480.0,0.00019953,2]
[359168796,1745767840186,-279.546119,0.00019953,2]
[359168797,1745767840195,-151.0,0.00019953,2]
[359168798,1745767840204,-279.546119,0.00019953,2]
[359168799,1745767840213,-151.0,0.00019953,2]
[359168800,1745767840223,-279.546119,0.00019953,2]
[359168801,1745767840232,-480.0,0.00019953,2]
[359168802,1745767840241,-279.546119,0.00019953,2]
[359168803,1745767840251,-279.546119,0.00019953,2]
[359168804,1745767840260,-221.66574667,0.00019953,2]
[359168805,1745767840272,-1778.33425333,0.00019953,2]
[359168806,1745767840282,-458.01277695,0.00019953,2]
[359168807,1745767840291,-480.0,0.00019953,2]
[359168808,1745767840303,-320.0,0.00019953,2]
[359168809,1745767840312,-480.0,0.00019953,2]
[359168810,1745767840321,-480.0,0.00019953,2]
[359168811,1745767840331,-457.81893071,0.00019953,2]
[359168812,1745767840340,-500.0,0.00019953,2]
[359168813,1745767840349,-400.0,0.00019953,2]
[359168814,1745767840358,-400.0,0.00019953,2]
[359168815,1745767840367,-480.0,0.00019953,2]
[359168816,1745767840378,-560.573953,0.00019953,2]
[359168817,1745767840387,-456.72160575,0.00019953,2]
[359168909,1745767844294,-23.27839425,0.00019953,2]
[359168910,1745767844304,-560.573953,0.00019953,2]
[359168911,1745767844313,-560.573953,0.00019953,2]
[359168912,1745767844323,-422.13901074,0.00019953,2]
[359168913,1745767844335,-57.86098926,0.00019953,2]
[359168914,1745767844344,-560.573953,0.00019953,2]
[359168915,1745767844353,-560.573953,0.00019953,2]
[359168916,1745767844363,-480.0,0.00019953,2]
[359168917,1745767844372,-560.573953,0.00019953,2]
[359168918,1745767844382,-560.573953,0.00019953,2]
[359168919,1745767844391,-480.0,0.00019953,2]
[359168920,1745767844401,-560.573953,0.00019953,2]
[359168921,1745767844411,-560.573953,0.00019953,2]
[359168922,1745767844420,-480.0,0.00019953,2]
[359168923,1745767844429,-560.573953,0.00019953,2]
[359168924,1745767844439,-480.0,0.00019953,2]
[359168925,1745767844449,-507.35576398,0.00019953,2]
[359168926,1745767844458,-480.0,0.00019953,2]
[359168927,1745767844468,-480.0,0.00019953,2]
[359168928,1745767844477,-1077.37,0.00019953,2]
[359168929,1745767844486,-400.0,0.00019953,2]
[359168930,1745767844495,-704.22,0.00019953,2]
[359168931,1745767844505,-480.0,0.00019953,2]
[359168932,1745767844514,-151.0,0.00019953,2]
[359168933,1745767844525,-151.0,0.00019953,2]
[359168934,1745767844536,-237.653654,0.00019953,2]
[359168935,1745767844546,-480.0,0.00019953,2]
[359168936,1745767844556,-480.0,0.00019953,2]
[359168937,1745767844567,-480.0,0.00019953,2]
[359168938,1745767844576,-480.0,0.00019953,2]
[359168939,1745767844585,-480.0,0.00019953,2]
[359168940,1745767844594,-411.81868988,0.00019953,2]
[359168941,1745767844604,-151.0,0.00019953,2]
[359168942,1745767844615,-151.0,0.00019953,2]
[359168943,1745767844625,-220.015524,0.00019953,2]
[359168944,1745767844635,-500.0,0.00019953,2]
[359168945,1745767844645,-480.0,0.00019953,2]
[359168946,1745767844655,-400.0,0.00019953,2]
[359168947,1745767844664,-480.0,0.00019953,2]
[359168948,1745767844674,-480.0,0.00019953,2]
[359168949,1745767844683,-480.0,0.00019953,2]
[359168950,1745767844693,-480.0,0.00019953,2]
[359168951,1745767844702,-500.0,0.00019953,2]
[359168952,1745767844714,-151.0,0.00019953,2]
[359168953,1745767844725,-480.0,0.00019953,2]
[359168954,1745767844734,-278.595348,0.00019953,2]
[359168955,1745767844744,-400.0,0.00019953,2]
[359168956,1745767844752,-480.0,0.00019953,2]
[359168957,1745767844761,-480.0,0.00019953,2]
[359168958,1745767844771,-480.0,0.00019953,2]
[359168959,1745767844780,-176.35483164,0.00019953,2]
[359168960,1745767844789,-480.0,0.00019953,2]
[359168961,1745767844799,-480.0,0.00019953,2]
[359168962,1745767844809,-480.0,0.00019953,2]
[359168963,1745767844818,-480.0,0.00019953,2]
[359168964,1745767844830,-200.0,0.00019953,2]
[359168965,1745767844840,-151.0,0.00019953,2]
[359168966,1745767844850,-151.0,0.00019953,2]
[359168967,1745767844859,-151.0,0.00019953,2]
[359168968,1745767844868,-151.0,0.00019953,2]
[359168969,1745767844877,-1554.37,0.00019953,2]
[359168970,1745767844886,-151.0,0.00019953,2]
[359168971,1745767844895,-151.0,0.00019953,2]
[359168972,1745767844904,-150.00057937,0.00019953,2]
[359168973,1745767844913,-151.0,0.00019953,2]
[359168974,1745767844923,-480.0,0.00019953,2]
[359168975,1745767844933,-480.0,0.00019953,2]
[359168976,1745767844942,-21.83694887,0.00019953,2]
[359168977,1745767844959,-458.16305113,0.00019953,2]
[359168978,1745767844969,-480.0,0.00019953,2]
[359168979,1745767844978,-151.0,0.00019953,2]
[359168980,1745767844988,-151.0,0.00019953,2]
[359168981,1745767844997,-151.0,0.00019953,2]
[359168982,1745767845007,-151.0,0.00019953,2]
[359168983,1745767845016,-151.0,0.00019953,2]
[359168984,1745767845026,-150.0,0.00019953,2]
[359168985,1745767845035,-151.0,0.00019953,2]
[359168986,1745767845045,-151.0,0.00019953,2]
[359168987,1745767845054,-150.0,0.00019953,2]
[359168988,1745767845063,-420.0,0.00019953,2]
[359168989,1745767845072,-430.02665274,0.00019953,2]
[359168990,1745767845082,-272.80460899,0.00019953,2]
[359168991,1745767845091,-480.0,0.00019953,2]
[359168992,1745767845100,-150.0,0.00019953,2]
[359168993,1745767845110,-480.0,0.00019953,2]
[359168994,1745767845119,-500.0,0.00019953,2]
[359168995,1745767845128,-480.0,0.00019953,2]
[359168996,1745767845138,-266.74628837,0.00019953,2]
[359169004,1745767845400,-213.25371163,0.00019953,2]
[359169005,1745767845410,-358.16602405,0.00019953,2]
[359169006,1745767845421,-145.69397595,0.00019953,2]
[359169007,1745767845431,-500.0,0.00019953,2]
[359169008,1745767845440,-207.4,0.00019953,2]
[359169009,1745767845449,-159.057514,0.00019954,2]
[359169010,1745767845458,-174.005283,0.00019954,2]
[359169011,1745767845467,-174.005283,0.00019954,2]
[359169012,1745767845476,-174.005283,0.00019954,2]
[359169013,1745767845487,-174.005283,0.00019954,2]
[359169014,1745767845496,-150.0,0.00019954,2]
[359169015,1745767845506,-299.4,0.00019954,2]
[359169016,1745767845515,-206.996829,0.00019954,2]
[359169017,1745767845525,-500.0,0.00019954,2]
[359169018,1745767845535,-156.669112,0.00019954,2]
[359169019,1745767845545,-500.0,0.00019954,2]
[359169020,1745767845554,-500.0,0.00019954,2]
[359169021,1745767845563,-200.0,0.00019954,2]
[359169022,1745767845573,-485.9985959,0.00019955,2]
[359169023,1745767845592,-14.0014041,0.00019955,2]
[359169024,1745767845603,-890.44859588,0.00019955,2]
[359169025,1745767845614,-93.36537588,0.00019955,2]
[359169026,1745767845624,-225.22249638,0.00019955,2]
[359169027,1745767845633,-200.0,0.00019955,2]
[359169028,1745767845642,-222.49350227,0.00019957,2]
[359169029,1745767845651,-480.0,0.00019961,2]
[359169030,1745767845662,-480.0,0.00019961,2]
[359169031,1745767845670,-480.0,0.00019961,2]
[359169032,1745767845680,-246.36971773,0.00019961,2]
[359169033,1745767845691,-233.63028227,0.00019961,2]
[359169034,1745767845700,-480.0,0.00019961,2]
[359169035,1745767845709,-480.0,0.00019961,2]
[359169036,1745767845719,-480.0,0.00019961,2]
[359169037,1745767845728,-480.0,0.00019961,2]
[359169038,1745767845737,-86.66971773,0.00019961,2]
[359169039,1745767845748,-393.33028227,0.00019961,2]
[359169040,1745767845758,-480.0,0.00019961,2]
[359169041,1745767845767,-480.0,0.00019961,2]
[359169042,1745767845776,-480.0,0.00019961,2]
[359169043,1745767845787,-480.0,0.00019961,2]
[359169044,1745767845796,-480.0,0.00019961,2]
[359169045,1745767845807,-279.546119,0.00019961,2]
[359169046,1745767845817,-2859.15,0.00019961,2]
[359169047,1745767845827,-154.177389,0.00019961,2]
[359169048,1745767845838,-279.546119,0.00019961,2]
[359169049,1745767845848,-480.0,0.00019961,2]
[359169051,1745767845857,-480.0,0.00019961,2]
[359169053,1745767845866,-560.573953,0.00019961,2]
[359169055,1745767845875,-480.0,0.00019961,2]
[359169057,1745767845885,-480.0,0.00019961,2]
[359169059,1745767845894,-560.573953,0.00019961,2]
[359169061,1745767845903,-10355.87,0.00019961,2]
[359169063,1745767845913,-480.0,0.00019961,2]
[359169065,1745767845922,-480.0,0.00019961,2]
[359169067,1745767845931,-480.0,0.00019961,2]
[359169068,1745767845940,-480.0,0.00019961,2]
[359169071,1745767845949,-480.0,0.00019961,2]
[359169074,1745767845958,-480.0,0.00019961,2]
[359169077,1745767845967,-480.0,0.00019961,2]
[359169080,1745767845976,-9434.94,0.00019961,2]
[359169083,1745767845985,-480.0,0.00019961,2]
[359169086,1745767845995,-548.83,0.00019961,2]
[359169088,1745767846004,-480.0,0.00019961,2]
[359169091,1745767846014,-480.0,0.00019961,2]
[359169094,1745767846024,-260.39374,0.00019961,2]
[359169096,1745767846033,-480.0,0.00019961,2]
[359169098,1745767846044,-480.0,0.00019961,2]
[359169100,1745767846053,-480.0,0.00019961,2]
[359169101,1745767846063,-388.24884201,0.00019961,2]
[359169102,1745767846076,-1688.17,0.00019961,2]
[359169103,1745767846086,-1330.74,0.00019961,2]
[359169104,1745767846095,-328.94532139,0.00019962,2]
[359169105,1745767846105,-511.6675207,0.00019962,2]
[359169106,1745767846114,-163.64299581,0.00019962,2]
[359169107,1745767846126,-500.0,0.00019962,2]
[359169108,1745767846135,-500.42205834,0.00019962,2]
[359169109,1745767846145,-294.37736158,0.00019962,2]
[359169110,1745767846155,-480.0,0.00019962,2]
[359169111,1745767846164,-414.62234028,0.00019962,2]
[359169112,1745767846173,-480.0,0.00019962,2]
[359169113,1745767846183,-500.6562408,0.00019962,2]
[359169114,1745767846192,-500.0,0.00019962,2]
[359169115,1745767846201,-500.0,0.00019962,2]
[359169116,1745767846210,-504.74938954,0.00019962,2]
[359169117,1745767846220,-485.61829163,0.00019962,2]
[359169118,1745767846229,-502.59738259,0.00019962,2]
[359169119,1745767846239,-503.68924316,0.00019962,2]
[359169120,1745767846249,-558.56076802,0.00019962,2]
[359169121,1745767846260,-174.005283,0.00019962,2]
[359169122,1745767846269,-174.005283,0.00019962,2]
[359169123,1745767846279,-585.48,0.00019962,2]
[359169124,1745767846288,-343.05,0.00019962,2]
[359169125,1745767846298,-480.0,0.00019962,2]
[359169126,1745767846307,-212.21,0.00019962,2]
[359169127,1745767846317,-267.84874198,0.00019962,2]
[359169128,1745767846326,-480.0,0.00019962,2]
[359169129,1745767846335,-480.0,0.00019962,2]
[359169130,1745767846345,-480.0,0.00019962,2]
[359169131,1745767846354,-480.0,0.00019962,2]
[359169132,1745767846363,-480.0,0.00019962,2]
[359169133,1745767846372,-480.0,0.00019962,2]
[359169134,1745767846382,-480.0,0.00019962,2]
[359169135,1745767846391,-480.0,0.00019962,2]
[359169136,1745767846401,-480.0,0.00019962,2]
[359169137,1745767846410,-480.0,0.00019962,2]
[359169138,1745767846419,-480.0,0.00019962,2]
[359169139,1745767846429,-480.0,0.00019962,2]
[359169140,1745767846438,-504.16653923,0.00019962,2]
[359169141,1745767846447,-480.0,0.00019962,2]
[359169142,1745767846456,-480.0,0.00019962,2]
[359169143,1745767846465,-480.0,0.00019962,2]
[359169144,1745767846475,-480.0,0.00019962,2]
[359169145,1745767846484,-480.0,0.00019962,2]
[359169146,1745767846493,-151.0,0.00019962,2]
[359169147,1745767846502,-207.79711,0.00019962,2]
[359169148,1745767846512,-480.0,0.00019962,2]
[359169149,1745767846522,-578.39,0.00019962,2]
[359169150,1745767846534,-480.0,0.00019962,2]
[359169151,1745767846543,-480.0,0.00019962,2]
[359169152,1745767846553,-601.54772035,0.00019962,2]
[359169153,1745767846562,-480.0,0.00019962,2]
[359169154,1745767846571,-480.0,0.00019962,2]
[359169155,1745767846580,-480.0,0.00019962,2]
[359169156,1745767846589,-480.0,0.00019962,2]
[359169157,1745767846599,-151.0,0.00019962,2]
[359169158,1745767846610,-480.0,0.00019962,2]
[359169159,1745767846619,-480.0,0.00019962,2]
[359169160,1745767846629,-480.0,0.00019962,2]
[359169161,1745767846638,-480.0,0.00019962,2]
[359169162,1745767846647,-480.0,0.00019962,2]
[359169163,1745767846657,-480.0,0.00019962,2]
[359169164,1745767846666,-480.0,0.00019962,2]
[359169165,1745767846677,-480.0,0.00019962,2]
[359169166,1745767846687,-6931.46,0.00019962,2]
[359169167,1745767846696,-480.0,0.00019962,2]
[359169168,1745767846706,-480.0,0.00019962,2]
[359169169,1745767846715,-643.83,0.00019962,2]
[359169170,1745767846725,-480.0,0.00019962,2]
[359169171,1745767846734,-487.71,0.00019962,2]
[359169172,1745767846744,-480.0,0.00019962,2]
[359169173,1745767846754,-480.0,0.00019962,2]
[359169174,1745767846764,-47681.5,0.00019962,2]
[359169175,1745767846773,-480.0,0.00019962,2]
[359169176,1745767846783,-480.0,0.00019962,2]
[359169177,1745767846792,-480.0,0.00019962,2]
[359169178,1745767846803,-6061.05,0.00019962,2]
[359169179,1745767846814,-480.0,0.00019962,2]
[359169180,1745767846825,-2751.64,0.00019962,2]
[359169181,1745767846836,-480.0,0.00019962,2]
[359169182,1745767846845,-480.0,0.00019962,2]
[359169183,1745767846855,-480.0,0.00019962,2]
[359169184,1745767846864,-1009.13,0.00019962,2]
[359169185,1745767846874,-480.0,0.00019962,2]
[359169186,1745767846883,-480.0,0.00019962,2]
[359169187,1745767846893,-480.0,0.00019962,2]
[359169188,1745767846903,-480.0,0.00019962,2]
[359169189,1745767846912,-520.21,0.00019962,2]
[359169190,1745767846922,-480.0,0.00019962,2]
[359169191,1745767846931,-480.0,0.00019962,2]
[359169192,1745767846943,-480.0,0.00019962,2]
[359169193,1745767846954,-480.0,0.00019962,2]
[359169194,1745767846963,-480.0,0.00019962,2]
[359169195,1745767846973,-480.0,0.00019962,2]
[359169196,1745767846984,-960.16,0.00019962,2]
[359169197,1745767846993,-480.0,0.00019962,2]
[359169198,1745767847004,-480.0,0.00019962,2]
[359169199,1745767847014,-279.546119,0.00019962,2]
[359169200,1745767847024,-279.546119,0.00019962,2]
[359169201,1745767847033,-480.0,0.00019962,2]
[359169202,1745767847043,-480.0,0.00019962,2]
[359169203,1745767847053,-279.546119,0.00019962,2]
[359169204,1745767847063,-279.546119,0.00019962,2]
[359169205,1745767847073,-480.0,0.00019962,2]
[359169206,1745767847083,-2000.0,0.00019962,2]
[359169207,1745767847092,-480.0,0.00019962,2]
[359169208,1745767847102,-480.0,0.00019962,2]
[359169209,1745767847111,-480.0,0.00019962,2]
[359169210,1745767847121,-560.573953,0.00019962,2]
[359169211,1745767847131,-320.0,0.00019962,2]
[359169212,1745767847140,-560.573953,0.00019962,2]
[359169213,1745767847150,-480.0,0.00019962,2]
[359169214,1745767847159,-560.573953,0.00019962,2]
[359169215,1745767847169,-560.573953,0.00019962,2]
[359169216,1745767847180,-2725.25,0.00019962,2]
[359169217,1745767847190,-346.47873869,0.00019962,2]
[359169218,1745767847200,-1077.37,0.00019962,2]
[359169219,1745767847210,-480.0,0.00019962,2]
[359169220,1745767847220,-198.62068017,0.00019962,2]
[359169221,1745767847230,-480.0,0.00019962,2]
[359169222,1745767847240,-480.0,0.00019962,2]
[359169223,1745767847250,-480.0,0.00019962,2]
[359169224,1745767847261,-480.0,0.00019962,2]
[359169225,1745767847271,-480.0,0.00019962,2]
[359169226,1745767847281,-230.05952575,0.00019962,2]
[359169227,1745767847291,-367.30629034,0.00019962,2]
[359169228,1745767847301,-480.0,0.00019962,2]
[359169229,1745767847311,-834.87,0.00019962,2]
[359169230,1745767847320,-480.0,0.00019962,2]
[359169231,1745767847330,-480.0,0.00019962,2]
[359169232,1745767847340,-480.0,0.00019962,2]
[359169233,1745767847350,-480.0,0.00019962,2]
[359169234,1745767847359,-480.0,0.00019962,2]
[359169235,1745767847368,-480.0,0.00019962,2]
[359169236,1745767847378,-480.0,0.00019962,2]
[359169237,1745767847388,-480.0,0.00019962,2]
[359169238,1745767847397,-1554.37,0.00019962,2]
[359169239,1745767847407,-1422.34,0.00019962,2]
[359169240,1745767847417,-480.0,0.00019962,2]
[359169241,1745767847427,-961.54,0.00019962,2]
[359169242,1745767847436,-480.0,0.00019962,2]
[359169243,1745767847446,-480.0,0.00019962,2]
[359169244,1745767847455,-480.0,0.00019962,2]
[359169245,1745767847465,-503.86,0.00019962,2]
[359169246,1745767847475,-300.0,0.00019962,2]
[359169247,1745767847485,-64887.93434352,0.00019963,2]
[359169248,1745767847494,-480.0,0.00019963,2]
[359169249,1745767847504,-480.0,0.00019963,2]
[359169250,1745767847514,-480.0,0.00019963,2]
[359169251,1745767847525,-174.005283,0.00019963,2]
[359169252,1745767847535,-174.005283,0.00019963,2]
[359169253,1745767847546,-174.005283,0.00019963,2]
[359169254,1745767847556,-174.005283,0.00019963,2]
[359169255,1745767847566,-174.005283,0.00019963,2]
[359169256,1745767847577,-174.005283,0.00019963,2]
[359169257,1745767847587,-480.0,0.00019963,2]
[359169258,1745767847597,-480.0,0.00019963,2]
[359169259,1745767847607,-480.0,0.00019963,2]
[359169260,1745767847618,-480.0,0.00019963,2]
[359169261,1745767847627,-480.0,0.00019963,2]
[359169262,1745767847637,-480.0,0.00019963,2]
[359169263,1745767847647,-480.0,0.00019963,2]
[359169264,1745767847657,-480.0,0.00019963,2]
[359169265,1745767847667,-480.0,0.00019963,2]
[359169266,1745767847677,-480.0,0.00019963,2]
[359169267,1745767847687,-480.0,0.00019963,2]
[359169268,1745767847696,-480.0,0.00019963,2]
[359169269,1745767847706,-379.30228074,0.00019963,2]
[359169270,1745767847716,-480.0,0.00019963,2]
[359169271,1745767847726,-480.0,0.00019963,2]
[359169272,1745767847736,-480.0,0.00019963,2]
[359169273,1745767847745,-480.0,0.00019963,2]
[359169274,1745767847755,-480.0,0.00019963,2]
[359169275,1745767847765,-525.64701371,0.00019963,2]
[359169276,1745767847775,-480.0,0.00019963,2]
[359169277,1745767847785,-480.0,0.00019963,2]
[359169278,1745767847794,-480.0,0.00019963,2]
[359169279,1745767847804,-480.0,0.00019963,2]
[359169280,1745767847814,-480.0,0.00019963,2]
[359169281,1745767847824,-480.0,0.00019963,2]
[359169282,1745767847834,-459.97256021,0.00019963,2]
[359169283,1745767847844,-237.60761132,0.00019963,2]
[359169284,1745767847854,-480.0,0.00019963,2]
[359169285,1745767847863,-535.16506867,0.00019963,2]
[359169286,1745767847873,-480.0,0.00019963,2]
[359169287,1745767847883,-480.0,0.00019963,2]
[359169288,1745767847893,-480.0,0.00019963,2]
[359169289,1745767847903,-480.0,0.00019963,2]
[359169290,1745767847912,-480.0,0.00019963,2]
[359169291,1745767847922,-480.0,0.00019963,2]
[359169292,1745767847931,-480.0,0.00019963,2]
[359169293,1745767847940,-480.0,0.00019963,2]
[359169294,1745767847949,-480.0,0.00019963,2]
[359169295,1745767847958,-602.36439032,0.00019963,2]
[359169296,1745767847967,-480.0,0.00019963,2]
[359169297,1745767847977,-471.49171989,0.00019963,2]
[359169298,1745767847986,-320.0,0.00019963,2]
[359169299,1745767847995,-480.0,0.00019963,2]
[359169300,1745767848005,-480.0,0.00019963,2]
[359169301,1745767848015,-480.0,0.00019963,2]
[359169302,1745767848026,-480.0,0.00019963,2]
[359169303,1745767848036,-480.0,0.00019963,2]
[359169304,1745767848046,-480.0,0.00019963,2]
[359169305,1745767848055,-480.0,0.00019963,2]
[359169306,1745767848065,-480.0,0.00019963,2]
[359169307,1745767848075,-480.0,0.00019963,2]
[359169308,1745767848085,-480.0,0.00019963,2]
[359169309,1745767848095,-480.0,0.00019963,2]
[359169310,1745767848104,-159.18600391,0.00019963,2]
[359169311,1745767848115,-480.0,0.00019963,2]
[359169312,1745767848124,-320.0,0.00019963,2]
[359169313,1745767848134,-480.0,0.00019963,2]
[359169314,1745767848144,-480.0,0.00019963,2]
[359169315,1745767848154,-480.0,0.00019963,2]
[359169316,1745767848163,-480.0,0.00019963,2]
[359169317,1745767848173,-487.05610861,0.00019963,2]
[359169318,1745767848183,-480.0,0.00019963,2]
[359169319,1745767848193,-2034.54,0.00019963,2]
[359169320,1745767848203,-480.0,0.00019963,2]
[359169321,1745767848212,-594.18,0.00019963,2]
[359169322,1745767848224,-2540.98,0.00019963,2]
[359169323,1745767848233,-562.16025886,0.00019963,2]
[359169324,1745767848243,-520.0,0.00019963,2]
[359169325,1745767848253,-480.0,0.00019963,2]
[359169326,1745767848263,-480.0,0.00019963,2]
[359169327,1745767848273,-480.0,0.00019963,2]
[359169328,1745767848282,-480.0,0.00019963,2]
[359169329,1745767848292,-172.82847962,0.00019963,2]
[359169330,1745767848304,-480.0,0.00019963,2]
[359169331,1745767848314,-480.0,0.00019963,2]
[359169332,1745767848324,-480.0,0.00019963,2]
[359169333,1745767848334,-480.0,0.00019963,2]
[359169334,1745767848343,-480.0,0.00019963,2]
[359169335,1745767848353,-320.0,0.00019963,2]
[359169336,1745767848362,-480.0,0.00019963,2]
[359169337,1745767848372,-560.00130727,0.00019963,2]
[359169338,1745767848381,-480.0,0.00019963,2]
[359169339,1745767848391,-480.0,0.00019963,2]